Workbook

Sheet (1)
B1: n = # of trials = | C1: 2
B2: Outcomes = | C2: 2
B3: Total Outcomes (Samples Points) | C3: =C2^C1 -> 4
A4: b | B4: Random Variable = | C4: =C5 -> Heads | D4: =D5 -> H | E4: # of heads that we can get in 2 tosses
B5: Success = | C5: Heads | D5: H
B6: pi = Probability of Success = | C6: 0.5
B7: 1- pi = Not Success | C7: =1-C6 -> 0.5 | D7: Tails | E7: T
F8: c
A9: a | B9: Count of all Outcomes | F9: X = # Heads in 2 Tosses
B10: 1 | C10: H | D10: H | E10: ="("&C10&", "&D10&")" -> (H, H) | F10: =COUNTIF(C10:D10,$D$5) -> 2
B11: 2 | C11: T | D11: H | E11: ="("&C11&", "&D11&")" -> (T, H) | F11: =COUNTIF(C11:D11,$D$5) -> 1
B12: 3 | C12: H | D12: T | E12: ="("&C12&", "&D12&")" -> (H, T) | F12: =COUNTIF(C12:D12,$D$5) -> 1
B13: 4 | C13: T | D13: T | E13: ="("&C13&", "&D13&")" -> (T, T) | F13: =COUNTIF(C13:D13,$D$5) -> 0
A15: d | B15: The Variable is discrete because the possible values are 0, 1, 2. We can count.
C17: X | D17: Frequency | E17: P(X) Relative Frequency
C18: 0 | D18: =COUNTIF($F$10:$F$13,C18) -> 1 | E18: =D18/$D$21 -> 0.25
C19: 1 | D19: =COUNTIF($F$10:$F$13,C19) -> 2 | E19: =D19/$D$21 -> 0.5
C20: 2 | D20: =COUNTIF($F$10:$F$13,C20) -> 1 | E20: =D20/$D$21 -> 0.25
D21: =SUM(D18:D20) -> 4 | E21: =SUM(E18:E20) -> 1

Sheet (2)
A1: a | B1: Continuous Random Variable = | C1: Time in minutes it takes to assemble product
A2: b | B2: any number between 0 and some upper limit. X > 0
A3: c | B3: Continuous because we could get 1.2 minutes, or 1.2367 minutes. It depends on the measurement instrument

Sheet (3)
B1: # students Interviewed = | C1: 3 | D1: # Trials
B2: # outcomes = | C2: 2
B3: Total Experimental Outcomes = | C3: =C2^C1 -> 8
A5: b | B5: Random Variable = | C5: Number of offers in 3 students interviewed
B6: Success = | C6: Offer | D6: =LEFT(C6,1) -> O | E6: 1
C7: No Offer | D7: =LEFT(C7,1) -> N | E7: 0
A8: b | B8: Discrete, the discrete possibilities are: 0,1,2,3
F9: a | G9: c
B10: # Trials (Experimental Outcomes, or Sample Points) | C10: Trial 1 | D10: Trial 2 | E10: Trial 3 | F10: Sample Points | G10: X = O
B11: 1 | C11: O | D11: O | E11: O | F11: ="("&C11&", "&D11&", "&E11&")" -> (O, O, O) | G11: =COUNTIF(C11:E11,$D$6) -> 3
B12: 2 | C12: N | D12: O | E12: O | F12: ="("&C12&", "&D12&", "&E12&")" -> (N, O, O) | G12: 2
B13: 3 | C13: O | D13: N | E13: O | F13: (O, N, O) | G13: 2
B14: 4 | C14: O | D14: O | E14: N | F14: (O, O, N) | G14: 2
B15: 5 | C15: N | D15: N | E15: O | F15: (N, N, O) | G15: 1
B16: 6 | C16: N | D16: O | E16: N | F16: (N, O, N) | G16: 1
B17: 7 | C17: O | D17: N | E17: N | F17: (O, N, N) | G17: 1
B18: 8 | C18: N | D18: N | E18: N | F18: (N, N, N) | G18: 0
C20: X | D20: Frequency | E20: P(X) Relative Frequency
C21: 0 | D21: =COUNTIF($G$11:$G$18,C21) -> 1 | E21: =D21/$D$25 -> 0.125
C22: 1 | D22: =COUNTIF($G$11:$G$18,C22) -> 3 | E22: =D22/$D$25 -> 0.375
C23: 2 | D23: =COUNTIF($G$11:$G$18,C23) -> 3 | E23: =D23/$D$25 -> 0.375
C24: 3 | D24: =COUNTIF($G$11:$G$18,C24) -> 1 | E24: =D24/$D$25 -> 0.125
D25: =SUM(D21:D24) -> 8 | E25: =SUM(E21:E24) -> 1

Sheet (4)
A1: 0 | B1: 1 | C1: 2 | D1: 3 | E1: 4 | F1: 5 | G1: 6 | H1: 7 | I1: 8 | J1: 9
A3: The random Variable could assume these values : 0, 1, 2, 3, 4, 5, 6, 7, 8, 9

Sheet (5)
F1: Random Variable = Total Steps
D3: 1 | E3: ="("&$B$5&", "&D3&")" -> (1, 1) | F3: =$B$5+D3 -> 2
B5: 1 | D5: 2 | E5: ="("&$B$5&", "&D5&")" -> (1, 2) | F5: =$B$5+D5 -> 3
D7: 3 | E7: ="("&$B$5&", "&D7&")" -> (1, 3) | F7: =$B$5+D7 -> 4
D9: 1 | E9: ="("&$B$11&", "&D9&")" -> (2, 1) | F9: =$B$11+D9 -> 3
B11: 2 | D11: 2 | E11: ="("&$B$11&", "&D11&")" -> (2, 2) | F11: =$B$11+D11 -> 4
D13: 3 | E13: ="("&$B$11&", "&D13&")" -> (2, 3) | F13: =$B$11+D13 -> 5
D16: X | E16: Frequency | F16: P(X) Relative Frequency
D17: 2 | E17: =COUNTIF($F$3:$F$13,D17) -> 1 | F17: =E17/$E$21 -> 0.1666666667
D18: 3 | E18: =COUNTIF($F$3:$F$13,D18) -> 2 | F18: =E18/$E$21 -> 0.3333333333
D19: 4 | E19: =COUNTIF($F$3:$F$13,D19) -> 2 | F19: =E19/$E$21 -> 0.3333333333
D20: 5 | E20: =COUNTIF($F$3:$F$13,D20) -> 1 | F20: =E20/$E$21 -> 0.1666666667
E21: =SUM(E17:E20) -> 6 | F21: =SUM(F17:F20) -> 1

Sheet (6)
A1: Letter | B1: Experiment | C1: Random Variable (X) | D1: D/C | E1: Values
A2: a | B2: 20 Q Exam | C2: # answered correctly | D2: Discrete | E2: 1,2,3,…19,20
A3: b | B3: Observe cars arriving at toll booth | C3: # cars | D3: Discrete | E3: 1,2,3…
A4: c | B4: Audit 50 tax returns | C4: # errors | D4: Discrete | E4: 1,2,…49,50
A5: d | B5: Observe Employee work | C5: # of non-productive hours in an 8-hour day | D5: Continuous | E5: 0 >= X <= 8
A6: e | B6: Weight | C6: Number of pounds | D6: Continuous | E6: X > 0
D8: Discrete
D9: Continuous

Sheet (7)
B1: X | C1: F(X)
B2: 20 | C2: 0.2 | D2: ="P("&B2&")" -> P(20) | E2: ="P("&B2&") = "&C2 -> P(20) = 0.2
B3: 25 | C3: 0.15 | D3: ="P("&B3&")" -> P(25) | E3: ="P("&B3&") = "&C3 -> P(25) = 0.15
B4: 30 | C4: 0.25 | D4: ="P("&B4&")" -> P(30) | E4: ="P("&B4&") = "&C4 -> P(30) = 0.25
B5: 35 | C5: 0.4 | D5: ="P("&B5&")" -> P(35) | E5: ="P("&B5&") = "&C5 -> P(35) = 0.4
C6: =SUM(C2:C5) -> 1
A8: a | B8: Yes. P(20) + P(25) + P(30) + P(35) = 0.2 + 0.15 + 0.25 + 0.4 = 1 AND each probability is greater than zero x >= 0 ΣX = 1 | P8: ="Yes. "&MCONCAT(D2:D5," + ")&" = "&MCONCAT(C2:C5," + ")&" = "&SUM(C2:C5)
A9: b | B9: =D4 -> P(30) | C9: =C4 -> 0.25
A10: c | B10: P(X <= 25), for domain given {20, 25, 30, 35} | C10: =SUM(C2:C3) -> 0.35 | D10: or | E10: <=25 | F10: =SUMIF($B$2:$B$5,E10,$C$2:$C$5) -> 0.35 | G10: =SUMIF($B$2:$B$5,E10,$C$2:$C$5)
A11: d | B11: P(X > 30), for domain given {20, 25, 30, 35} | C11: =C5 -> 0.4 | D11: or | E11: >30 | F11: 0.4

Sheet (8)
A1: Count number of operating rooms in use over a 20 day period
A2: Number of operating rooms = | B2: 4
A3: x = | B3: # operating rooms in use for 1 day
A5: a | D5: c | F5: b
A6: x = # operating rooms in use for 1 day | B6: Frequency (# of days | C6: Relative Frequency P(x) = f(x) = Probability | D6: Is each f(x) >= 0?
A7: 1 | B7: 3 | C7: =B7/$B$11 -> 0.15 | D7: =C7>=0 -> TRUE
A8: 2 | B8: 5 | C8: =B8/$B$11 -> 0.25 | D8: =C8>=0 -> TRUE
A9: 3 | B9: 8 | C9: =B9/$B$11 -> 0.4 | D9: =C9>=0 -> TRUE
A10: 4 | B10: 4 | C10: =B10/$B$11 -> 0.2 | D10: =C10>=0 -> TRUE
B11: =SUM(B7:B10) -> 20 | C11: =SUM(C7:C10) -> 1
C12: c
F18: Discrete Probability Charts don't have columns that touch.

Sheet (9-old) (hidden)
B1: National Percentage of 4th graders that can't read an age-appropriate book = | C1: 0.38
B2: Most that have reading problem should be identified before 3rd grade | C2: 3
B3: Fed law says they can't get help until they fall 2 years behind | C3: 2 | D3: typically = | E3: 3 | F3: rd grade
B4: Random variable = age of one randomly selected child | C4: x =
B5: Goal: select a sample of children identified as learning disabled under special education for a program designed to improve reading ability
A6: a | D6: c | F6: b
A7: Age x | B7: Frequency # of children identified as learning disabled under special education | C7: f(x) = p(x) | D7: Is each f(x) >= 0?
A8: 6 | B8: 37369 | C8: =B8/$B$17 -> 0.01848875036 | D8: =C8>0 -> TRUE
A9: 7 | B9: 87436 | C9: 0.04325998491 | D9: TRUE
A10: 8 | B10: 160840 | C10: 0.0795774735 | D10: TRUE
A11: 9 | B11: 239719 | C11: 0.1186037825 | D11: TRUE
A12: 10 | B12: 286719 | C12: 0.1418575828 | D12: TRUE
A13: 11 | B13: 306533 | C13: 0.1516607914 | D13: TRUE
A14: 12 | B14: 310787 | C14: 0.1537655077 | D14: TRUE
A15: 13 | B15: 302604 | C15: 0.1497168726 | D15: TRUE
A16: 14 | B16: 289168 | C16: 0.1430692543 | D16: TRUE
B17: =SUM(B8:B16) -> 2021175 | C17: =SUM(C8:C16) -> 1
C18: c
F20: Discrete Probability Charts don't have columns that touch.

Sheet (9)
D1: a | E1: b | J1: not rounded like in solution manual
A2: Months Unemployed | B2: Number Unemployed = Frequency at # months unemployed | C2: P(x) | D2: P(x) | E2: P9x) > = 0? | J2: P(x)
A3: 1 | B3: 1029 | C3: ="P("&A3&")" -> P(1) | D3: =B3/$B$13 -> 0.03814643188 | E3: =D3>=0 -> TRUE | J3: =ROUND(D3,4) -> 0.0381
A4: 2 | B4: 1686 | C4: P(2) | D4: 0.06250231696 | E4: TRUE | J4: 0.0625
A5: 3 | B5: 2269 | C5: P(3) | D5: 0.08411492122 | E5: TRUE | J5: 0.0841
A6: 4 | B6: 2675 | C6: P(4) | D6: 0.09916589435 | E6: TRUE | J6: 0.0992
A7: 5 | B7: 3487 | C7: P(5) | D7: 0.1292678406 | E7: TRUE | J7: 0.1293
A8: 6 | B8: 4652 | C8: P(6) | D8: 0.1724559778 | E8: TRUE | J8: 0.1725
A9: 7 | B9: 4145 | C9: P(7) | D9: 0.153660797 | E9: TRUE | J9: 0.1537
A10: 8 | B10: 3587 | C10: P(8) | D10: 0.1329749768 | E10: TRUE | J10: 0.133
A11: 9 | B11: 2325 | C11: P(9) | D11: 0.08619091752 | E11: TRUE | J11: 0.0862
A12: 10 | B12: 1120 | C12: P(10) | D12: 0.04151992586 | E12: TRUE | J12: 0.0415
B13: =SUM(B3:B12) -> 26975 | C13: b | D13: =SUM(D3:D12) -> 1 | J13: =SUM(J3:J12) -> 1.0001
A15: x = random variable = # months unemployed
A17: c | B17: <=2 | C17: ="P(x"&B17&")" -> P(x<=2) | D17: =SUMIF($A$3:$A$12,B17,$D$3:$D$12) -> 0.1006487488
B18: >2 | C18: P(x>2) | D18: =SUMIF($A$3:$A$12,B18,$D$3:$D$12) -> 0.8993512512
A19: d | B19: >6 | C19: P(x>6) | D19: =SUMIF($A$3:$A$12,B19,$D$3:$D$12) -> 0.4143466172

Sheet (10)
A1: a | B1: Job satisfaction score | C1: IS Senior Executives | D1: Is each f(x) >= 0? | E1: IS Middle Executives | F1: Is each f(x) >= 0?
B2: 1 | C2: 0.05 | D2: =C2>0 -> TRUE | E2: 0.04 | F2: =E2>0 -> TRUE
B3: 2 | C3: 0.09 | D3: =C3>0 -> TRUE | E3: 0.1 | F3: =E3>0 -> TRUE
B4: 3 | C4: 0.03 | D4: =C4>0 -> TRUE | E4: 0.12 | F4: =E4>0 -> TRUE
B5: 4 | C5: 0.42 | D5: =C5>0 -> TRUE | E5: 0.46 | F5: =E5>0 -> TRUE
B6: 5 | C6: 0.41 | D6: =C6>0 -> TRUE | E6: 0.28 | F6: =E6>0 -> TRUE
C7: =SUM(C2:C6) -> 1 | E7: =SUM(E2:E6) -> 1
D11: or
E20: c | F20: P(Senior score = 4 or 5)= f(4) + f(5) = | G20: =SUM(C5:C6) -> 0.83
E21: d | F21: P(Middle = 5) = f(5) = | G21: =E6 -> 0.28
E22: e | F22: It is a tie for the scores 1 and 2, Middle managers claim more at a score of 3 and 4, but senior managers claim many more at a score of 5. Over all Senior managers claim more satisfaction.

Sheet (11)
A1: a | B1: x = # hours for service call | C1: f(x) = (1/4) | D1: Is each f(x) >= 0? | E1: c
B2: 1 | C2: =1/4 -> 0.25 | D2: =C2>0 -> TRUE
B3: 2 | C3: =1/4 -> 0.25 | D3: =C3>0 -> TRUE
B4: 3 | C4: =1/4 -> 0.25 | D4: =C4>0 -> TRUE
B5: 4 | C5: =1/4 -> 0.25 | D5: =C5>0 -> TRUE
C6: =SUM(C2:C5) -> 1
C7: c | F7: b
A10: d
A11: P(3) = | B11: =C4 -> 0.25
A13: e | B13: P(given only 2 hours,overtime) = P(3) + P(4) | C13: =SUM(C4:C5) -> 0.5

Sheet (12)
B1: x = # new subscribers in next year | C1: f(x) = Probability of new subscribers in next year | D1: Is each f(x) >= 0?
B2: 100000 | C2: 0.1 | D2: =C2>0 -> TRUE
B3: 200000 | C3: 0.2 | D3: TRUE
B4: 300000 | C4: 0.25 | D4: TRUE
B5: 400000 | C5: 0.3 | D5: TRUE
B6: 500000 | C6: 0.1 | D6: TRUE
B7: 600000 | C7: 0.05 | D7: TRUE
C8: =SUM(C2:C7) -> 1
A10: a | B10: Yes because X>0 and Σf(x) = 1
A12: b
A13: P(X>400000) = | B13: =SUM(C6:C7) -> 0.15
A15: b
A16: P(X<200000) = | B16: =SUM(C2) -> 0.1

Sheet (14)
B1: x (profits in $1,000) | C1: f(x)
B2: -100 | C2: 0.1
B3: 0 | C3: 0.2
B4: 50 | C4: 0.3
B5: 100 | C5: 0.25
B6: 150 | C6: 0.1
B7: 200 | C7: =1-SUM(C2:C6) -> 0.05 | D7: a | E7: Probability of $200,000 profits
C8: =SUM(C2:C7) -> 1
A10: b | C10: check
A11: ="P(X > "&DOLLAR(A12)&")" -> P(X > $0.00) | B11: =SUM(C4:C7) -> 0.7 | C11: =SUMIF($B$2:$B$7,">"&A12,$C$2:$C$7) -> 0.7
A12: 0
A13: c | C13: check
A14: ="P(X > = "&DOLLAR(A15*1000)&")" -> P(X > = $100,000.00) | B14: =SUM(C5:C7) -> 0.4 | C14: =SUMIF($B$2:$B$7,">="&A15,$C$2:$C$7) -> 0.4
A15: 100

Sheet (18)
A1: Data on Central Cities
A5: X = # Bedrooms in House | B5: Renter-Occupied Frequency # Houses (1,000s) | C5: f(x) | D5: (X-E(x))^2 | F5: y = # Bedrooms in House | G5: Owner-Occupied Frequency # Houses (1,000s) | H5: f(x) | I5: (X-E(x))^2
A6: 0 | B6: 547 | C6: =B6/B$11 -> 0.0368102288 | D6: =(A6-C$13)^2 -> 3.39293425 | F6: =A6 -> 0 | G6: 23 | H6: =G6/G$11 -> 0.001363447744 | I6: =(F6-H$13)^2 -> 8.578241964
A7: 1 | B7: 5012 | C7: =B7/B$11 -> 0.3372812921 | D7: =(A7-C$13)^2 -> 0.7089504011 | F7: =A7 -> 1 | G7: 541 | H7: =G7/G$11 -> 0.03207066216 | I7: =(F7-H$13)^2 -> 3.720514772
A8: 2 | B8: 6100 | C8: =B8/B$11 -> 0.4104979812 | D8: =(A8-C$13)^2 -> 0.02496655188 | F8: =A8 -> 2 | G8: 3832 | H8: =G8/G$11 -> 0.2271622503 | I8: =(F8-H$13)^2 -> 0.8627875799
A9: 3 | B9: 2644 | C9: =B9/B$11 -> 0.1779273217 | D9: =(A9-C$13)^2 -> 1.340982703 | F9: =A9 -> 3 | G9: 8690 | H9: =G9/G$11 -> 0.515146126 | I9: =(F9-H$13)^2 -> 0.005060387982
A10: 4 | B10: 557 | C10: =B10/B$11 -> 0.03748317631 | D10: =(A10-C$13)^2 -> 4.656998853 | F10: 4 | G10: 3783 | H10: =G10/G$11 -> 0.2242575138 | I10: =(F10-H$13)^2 -> 1.147333196
B11: =SUM(B6:B10) -> 14860 | C11: =SUM(C6:C10) -> 1 | G11: =SUM(G6:G10) -> 16869 | H11: =SUM(H6:H10) -> 1
A13: a, b | B13: E(x) | C13: =SUMPRODUCT(A6:A10,C6:C10) -> 1.841991925 | F13: c, d | G13: E(x) | H13: =SUMPRODUCT(F6:F10,H6:H10) -> 2.928863596
B14: Var(x) | C14: =SUMPRODUCT(D6:D10,C6:C10) -> 0.7874156823 | G14: Var(x) | H14: =SUMPRODUCT(I6:I10,H6:H10) -> 0.5869130544
B15: SD for Discrete Variable | C15: =SQRT(SUMPRODUCT(C6:C10,D6:D10)) -> 0.8873644586 | G15: SD for Discrete Variable | H15: =SQRT(SUMPRODUCT(H6:H10,I6:I10)) -> 0.7661025091
B16: check | C16: =SQRT(SUMPRODUCT((A6:A10-C13)^2,C6:C10)) -> 0.8873644586 | G16: check | H16: =SQRT(SUMPRODUCT((F6:F10-H13)^2,H6:H10)) -> 0.7661025091
A17: e | B17: The average number of bedrooms in an owner occupied house is large than the that of the renter occupied houses -- about 1 whole bedroom more. In addition, the data points are less spread out for the owner group than for the renter group - that is to say, the data points for the owner group are more clustered around its mean than for the renter group. The mean for the owner occupied houses more fairly represents its data points than does the mean for the renter-occupied data points

Sheet (20)
B1: Probability Distribution for Damage Claims Paid for NAI
B4: Payment$ | C4: Probability
B5: 0 | C5: 0.85
B6: 500 | C6: 0.04
B7: 1000 | C7: 0.04
B8: 3000 | C8: 0.03
B9: 5000 | C9: 0.02
B10: 8000 | C10: 0.01
B11: 10000 | C11: 0.01
A13: a | B13: E(x) = Expected collision Payment = Long-run average = | C13: =SUMPRODUCT(B5:B11,C5:C11) -> 430
B14: Annual Rate | C14: 520
A15: b | B15: Expected Value (profit) = | C15: =C14-C13 -> 90
A16: c | B16: Because if they had a big accident (like $5000), 5000>520

Sheet (21)
B1: Job satisfaction score | C1: IS Senior Executives | D1: IS Middle Executives
B2: 1 | C2: 0.05 | D2: 0.04
B3: 2 | C3: 0.09 | D3: 0.1
B4: 3 | C4: 0.03 | D4: 0.12
B5: 4 | C5: 0.42 | D5: 0.46
B6: 5 | C6: 0.41 | D6: 0.28
C7: =SUM(C2:C6) -> 1 | D7: =SUM(D2:D6) -> 1
A9: a | B9: ="E(x) = Expected value for job satisfaction score for "&TRANSPOSE(C1:D1) -> E(x) = Expected value for job satisfaction score for IS Senior Executives | C9: =SUMPRODUCT(B2:B6,C2:C6) -> 4.05
A10: b | B10: E(x) = Expected value for job satisfaction score for IS Middle Executives | C10: =SUMPRODUCT(B2:B6,D2:D6) -> 3.84
A11: c,d | B11: ="SD for "&TRANSPOSE(C1:D1) -> SD for IS Senior Executives | C11: =SUMPRODUCT((B2:B6-C9)^2,C2:C6) -> 1.2475
A12: c,d | B12: SD for IS Middle Executives | C12: =SUMPRODUCT((B2:B6-C10)^2,D2:D6) -> 1.1344
A13: e | B13: The Senior managers seem to be slightly more satisfied, but the spread in the data points is more. Although the Seniors have a higher mean, at 4.05, the Middle managers have a similar mean, at 3.84, but the middle managers have the data points more closely clustered around the 3.84 (maybe they are more satisfied).

Sheet (22)
B1: Unit Demand = x | C1: Prob = f(x)
B2: 300 | C2: 0.2
B3: 400 | C3: 0.3
B4: 500 | C4: 0.35
B5: 600 | C5: 0.15
C6: =SUM(C2:C5) -> 1
A8: a | B8: Mean | C8: =SUMPRODUCT(B2:B5,C2:C5) -> 445 | D8: = monthly order quantity
B9: SD | C9: =SQRT(SUMPRODUCT((B2:B5-C8)^2,C2:C5)) -> 97.33961167
B11: Price per unit | C11: 70
B12: Cost per unit | C12: 50
B13: Actual Units sold | C13: 300
A14: b | B14: Sales | C14: =C11*C13 -> 21000
B15: Expenses | C15: =C12*C8 -> 22250
C16: =C14-C15 -> -1250

Sheet (28)
A1: Binomial Experiment 4 Requirements:
A2: 1 | B2: Experiment consists of a sequence of n identical trials. Random Variable counts the number of successes in a Fixed number of trials, n.
B3: Fixed # of Identical Trials = n | C3: Yes
A4: 2 | B4: Only 2 outcomes are possible on each identical trial. Success or Failure.
B5: Each trial only results in S or F | C5: Yes
A6: 3 | B6: Probability of Success = p = (π "pi"). Probability of Failure = 1-p. Probability remains the same on each trial.
B7: p remains the same for each trial | C7: Yes
A8: 4 | B8: The trials are independent (one does not affect the next)
B9: All events are independent | C9: Yes
I10: =B16&" = "&C16&" = "&D16&CHAR(10)&B3&" = "&D14 -> Probability of Stick with group = p (π) = 0.23 Fixed # of Identical Trials = n = 6
B11: Variables | G11: n | H11: x | I11: P(x) = f(x) | J11: P(x) = f(x) | K11: SUM
B12: Stick with group | C12: Success | F12: a | H12: =$D$15 -> 2 | I12: ="P(x = "&H12&")" -> P(x = 2) | J12: =_xlfn.BINOM.DIST(H12,$D$14,$D$16,0) -> 0.2789393803 | K12: =SUM(D21) -> 0.2789393803
B13: ="Not "&B12 -> Not Stick with group | C13: Failure | F13: b | H13: =$D$15 -> 2 | I13: ="P(x >= "&H13&")" -> P(x >= 2) | J13: =1-_xlfn.BINOM.DIST(H13-1,$D$14,$D$16,1) -> 0.4180414062 | K13: =SUM(D21:D25) -> 0.4180414062 | L13: at least 2
B14: Group of international travelers | C14: n | D14: 6 | F14: c | G14: 10 | H14: 0 | I14: ="P(x = "&H14&")" -> P(x = 0) | J14: =_xlfn.BINOM.DIST(H14,G14,$D$16,0) -> 0.07326680473 | L14: None = all 10
B15: ="# successes = # that "&B12 -> # successes = # that Stick with group | C15: x | D15: 2
B16: ="Probability of "&B12 -> Probability of Stick with group | C16: p (π) | D16: 0.23
C18: X | D18: P(x) = f(x)
C19: =IF(ROWS(C$19:C19)<=$D$14+1,ROWS(C$19:C19)-1,"") -> 0 | D19: =IF(AND(ISNUMBER(_xlfn.BINOM.DIST(C19,$D$14,$D$16,0)),ROWS(C$19:C19)<=$D$14+1),_xlfn.BINOM.DIST(C19,$D$14,$D$16,0),"") -> 0.2084223801
C20: =IF(ROWS(C$19:C20)<=$D$14+1,ROWS(C$19:C20)-1,"") -> 1 | D20: =IF(AND(ISNUMBER(_xlfn.BINOM.DIST(C20,$D$14,$D$16,0)),ROWS(C$19:C20)<=$D$14+1),_xlfn.BINOM.DIST(C20,$D$14,$D$16,0),"") -> 0.3735362137
C21: =IF(ROWS(C$19:C21)<=$D$14+1,ROWS(C$19:C21)-1,"") -> 2 | D21: =IF(AND(ISNUMBER(_xlfn.BINOM.DIST(C21,$D$14,$D$16,0)),ROWS(C$19:C21)<=$D$14+1),_xlfn.BINOM.DIST(C21,$D$14,$D$16,0),"") -> 0.2789393803
C22: =IF(ROWS(C$19:C22)<=$D$14+1,ROWS(C$19:C22)-1,"") -> 3 | D22: =IF(AND(ISNUMBER(_xlfn.BINOM.DIST(C22,$D$14,$D$16,0)),ROWS(C$19:C22)<=$D$14+1),_xlfn.BINOM.DIST(C22,$D$14,$D$16,0),"") -> 0.1110927402
C23: =IF(ROWS(C$19:C23)<=$D$14+1,ROWS(C$19:C23)-1,"") -> 4 | D23: =IF(AND(ISNUMBER(_xlfn.BINOM.DIST(C23,$D$14,$D$16,0)),ROWS(C$19:C23)<=$D$14+1),_xlfn.BINOM.DIST(C23,$D$14,$D$16,0),"") -> 0.02488765934
C24: =IF(ROWS(C$19:C24)<=$D$14+1,ROWS(C$19:C24)-1,"") -> 5 | D24: =IF(AND(ISNUMBER(_xlfn.BINOM.DIST(C24,$D$14,$D$16,0)),ROWS(C$19:C24)<=$D$14+1),_xlfn.BINOM.DIST(C24,$D$14,$D$16,0),"") -> 0.002973590466
C25: =IF(ROWS(C$19:C25)<=$D$14+1,ROWS(C$19:C25)-1,"") -> 6 | D25: =IF(AND(ISNUMBER(_xlfn.BINOM.DIST(C25,$D$14,$D$16,0)),ROWS(C$19:C25)<=$D$14+1),_xlfn.BINOM.DIST(C25,$D$14,$D$16,0),"") -> 0.000148035889
C26: =IF(ROWS(C$19:C26)<=$D$14+1,ROWS(C$19:C26)-1,"") ->  | D26: =IF(AND(ISNUMBER(_xlfn.BINOM.DIST(C26,$D$14,$D$16,0)),ROWS(C$19:C26)<=$D$14+1),_xlfn.BINOM.DIST(C26,$D$14,$D$16,0),"") -> 
C27: =IF(ROWS(C$19:C27)<=$D$14+1,ROWS(C$19:C27)-1,"") ->  | D27: =IF(AND(ISNUMBER(_xlfn.BINOM.DIST(C27,$D$14,$D$16,0)),ROWS(C$19:C27)<=$D$14+1),_xlfn.BINOM.DIST(C27,$D$14,$D$16,0),"") -> 
C28: =IF(ROWS(C$19:C28)<=$D$14+1,ROWS(C$19:C28)-1,"") ->  | D28: =IF(AND(ISNUMBER(_xlfn.BINOM.DIST(C28,$D$14,$D$16,0)),ROWS(C$19:C28)<=$D$14+1),_xlfn.BINOM.DIST(C28,$D$14,$D$16,0),"") -> 
C29: =IF(ROWS(C$19:C29)<=$D$14+1,ROWS(C$19:C29)-1,"") ->  | D29: =IF(AND(ISNUMBER(_xlfn.BINOM.DIST(C29,$D$14,$D$16,0)),ROWS(C$19:C29)<=$D$14+1),_xlfn.BINOM.DIST(C29,$D$14,$D$16,0),"") -> 
C30: =IF(ROWS(C$19:C30)<=$D$14+1,ROWS(C$19:C30)-1,"") ->  | D30: =IF(AND(ISNUMBER(_xlfn.BINOM.DIST(C30,$D$14,$D$16,0)),ROWS(C$19:C30)<=$D$14+1),_xlfn.BINOM.DIST(C30,$D$14,$D$16,0),"") -> 
C31: =IF(ROWS(C$19:C31)<=$D$14+1,ROWS(C$19:C31)-1,"") ->  | D31: =IF(AND(ISNUMBER(_xlfn.BINOM.DIST(C31,$D$14,$D$16,0)),ROWS(C$19:C31)<=$D$14+1),_xlfn.BINOM.DIST(C31,$D$14,$D$16,0),"") -> 
C32: =IF(ROWS(C$19:C32)<=$D$14+1,ROWS(C$19:C32)-1,"") ->  | D32: =IF(AND(ISNUMBER(_xlfn.BINOM.DIST(C32,$D$14,$D$16,0)),ROWS(C$19:C32)<=$D$14+1),_xlfn.BINOM.DIST(C32,$D$14,$D$16,0),"") -> 
C33: =IF(ROWS(C$19:C33)<=$D$14+1,ROWS(C$19:C33)-1,"") ->  | D33: =IF(AND(ISNUMBER(_xlfn.BINOM.DIST(C33,$D$14,$D$16,0)),ROWS(C$19:C33)<=$D$14+1),_xlfn.BINOM.DIST(C33,$D$14,$D$16,0),"") -> 
C34: =IF(ROWS(C$19:C34)<=$D$14+1,ROWS(C$19:C34)-1,"") ->  | D34: =IF(AND(ISNUMBER(_xlfn.BINOM.DIST(C34,$D$14,$D$16,0)),ROWS(C$19:C34)<=$D$14+1),_xlfn.BINOM.DIST(C34,$D$14,$D$16,0),"") -> 
C35: =IF(ROWS(C$19:C35)<=$D$14+1,ROWS(C$19:C35)-1,"") ->  | D35: =IF(AND(ISNUMBER(_xlfn.BINOM.DIST(C35,$D$14,$D$16,0)),ROWS(C$19:C35)<=$D$14+1),_xlfn.BINOM.DIST(C35,$D$14,$D$16,0),"") -> 
C36: =IF(ROWS(C$19:C36)<=$D$14+1,ROWS(C$19:C36)-1,"") ->  | D36: =IF(AND(ISNUMBER(_xlfn.BINOM.DIST(C36,$D$14,$D$16,0)),ROWS(C$19:C36)<=$D$14+1),_xlfn.BINOM.DIST(C36,$D$14,$D$16,0),"") -> 
C37: =IF(ROWS(C$19:C37)<=$D$14+1,ROWS(C$19:C37)-1,"") ->  | D37: =IF(AND(ISNUMBER(_xlfn.BINOM.DIST(C37,$D$14,$D$16,0)),ROWS(C$19:C37)<=$D$14+1),_xlfn.BINOM.DIST(C37,$D$14,$D$16,0),"") -> 
C38: =IF(ROWS(C$19:C38)<=$D$14+1,ROWS(C$19:C38)-1,"") ->  | D38: =IF(AND(ISNUMBER(_xlfn.BINOM.DIST(C38,$D$14,$D$16,0)),ROWS(C$19:C38)<=$D$14+1),_xlfn.BINOM.DIST(C38,$D$14,$D$16,0),"") -> 
C39: =IF(ROWS(C$19:C39)<=$D$14+1,ROWS(C$19:C39)-1,"") ->  | D39: =IF(AND(ISNUMBER(_xlfn.BINOM.DIST(C39,$D$14,$D$16,0)),ROWS(C$19:C39)<=$D$14+1),_xlfn.BINOM.DIST(C39,$D$14,$D$16,0),"") -> 
C40: =IF(ROWS(C$19:C40)<=$D$14+1,ROWS(C$19:C40)-1,"") ->  | D40: =IF(AND(ISNUMBER(_xlfn.BINOM.DIST(C40,$D$14,$D$16,0)),ROWS(C$19:C40)<=$D$14+1),_xlfn.BINOM.DIST(C40,$D$14,$D$16,0),"") -> 
C41: =IF(ROWS(C$19:C41)<=$D$14+1,ROWS(C$19:C41)-1,"") ->  | D41: =IF(AND(ISNUMBER(_xlfn.BINOM.DIST(C41,$D$14,$D$16,0)),ROWS(C$19:C41)<=$D$14+1),_xlfn.BINOM.DIST(C41,$D$14,$D$16,0),"") -> 
C42: =IF(ROWS(C$19:C42)<=$D$14+1,ROWS(C$19:C42)-1,"") ->  | D42: =IF(AND(ISNUMBER(_xlfn.BINOM.DIST(C42,$D$14,$D$16,0)),ROWS(C$19:C42)<=$D$14+1),_xlfn.BINOM.DIST(C42,$D$14,$D$16,0),"") -> 
C43: =IF(ROWS(C$19:C43)<=$D$14+1,ROWS(C$19:C43)-1,"") ->  | D43: =IF(AND(ISNUMBER(_xlfn.BINOM.DIST(C43,$D$14,$D$16,0)),ROWS(C$19:C43)<=$D$14+1),_xlfn.BINOM.DIST(C43,$D$14,$D$16,0),"") -> 
C44: =IF(ROWS(C$19:C44)<=$D$14+1,ROWS(C$19:C44)-1,"") ->  | D44: =IF(AND(ISNUMBER(_xlfn.BINOM.DIST(C44,$D$14,$D$16,0)),ROWS(C$19:C44)<=$D$14+1),_xlfn.BINOM.DIST(C44,$D$14,$D$16,0),"") -> 
C45: =IF(ROWS(C$19:C45)<=$D$14+1,ROWS(C$19:C45)-1,"") ->  | D45: =IF(AND(ISNUMBER(_xlfn.BINOM.DIST(C45,$D$14,$D$16,0)),ROWS(C$19:C45)<=$D$14+1),_xlfn.BINOM.DIST(C45,$D$14,$D$16,0),"") -> 
C46: =IF(ROWS(C$19:C46)<=$D$14+1,ROWS(C$19:C46)-1,"") ->  | D46: =IF(AND(ISNUMBER(_xlfn.BINOM.DIST(C46,$D$14,$D$16,0)),ROWS(C$19:C46)<=$D$14+1),_xlfn.BINOM.DIST(C46,$D$14,$D$16,0),"") -> 
C47: =IF(ROWS(C$19:C47)<=$D$14+1,ROWS(C$19:C47)-1,"") ->  | D47: =IF(AND(ISNUMBER(_xlfn.BINOM.DIST(C47,$D$14,$D$16,0)),ROWS(C$19:C47)<=$D$14+1),_xlfn.BINOM.DIST(C47,$D$14,$D$16,0),"") -> 
C48: =IF(ROWS(C$19:C48)<=$D$14+1,ROWS(C$19:C48)-1,"") ->  | D48: =IF(AND(ISNUMBER(_xlfn.BINOM.DIST(C48,$D$14,$D$16,0)),ROWS(C$19:C48)<=$D$14+1),_xlfn.BINOM.DIST(C48,$D$14,$D$16,0),"") -> 
C49: =IF(ROWS(C$19:C49)<=$D$14+1,ROWS(C$19:C49)-1,"") ->  | D49: =IF(AND(ISNUMBER(_xlfn.BINOM.DIST(C49,$D$14,$D$16,0)),ROWS(C$19:C49)<=$D$14+1),_xlfn.BINOM.DIST(C49,$D$14,$D$16,0),"") -> 
C50: =IF(ROWS(C$19:C50)<=$D$14+1,ROWS(C$19:C50)-1,"") ->  | D50: =IF(AND(ISNUMBER(_xlfn.BINOM.DIST(C50,$D$14,$D$16,0)),ROWS(C$19:C50)<=$D$14+1),_xlfn.BINOM.DIST(C50,$D$14,$D$16,0),"") -> 
C51: =IF(ROWS(C$19:C51)<=$D$14+1,ROWS(C$19:C51)-1,"") ->  | D51: =IF(AND(ISNUMBER(_xlfn.BINOM.DIST(C51,$D$14,$D$16,0)),ROWS(C$19:C51)<=$D$14+1),_xlfn.BINOM.DIST(C51,$D$14,$D$16,0),"") -> 
C52: =IF(ROWS(C$19:C52)<=$D$14+1,ROWS(C$19:C52)-1,"") ->  | D52: =IF(AND(ISNUMBER(_xlfn.BINOM.DIST(C52,$D$14,$D$16,0)),ROWS(C$19:C52)<=$D$14+1),_xlfn.BINOM.DIST(C52,$D$14,$D$16,0),"") -> 
C53: =IF(ROWS(C$19:C53)<=$D$14+1,ROWS(C$19:C53)-1,"") ->  | D53: =IF(AND(ISNUMBER(_xlfn.BINOM.DIST(C53,$D$14,$D$16,0)),ROWS(C$19:C53)<=$D$14+1),_xlfn.BINOM.DIST(C53,$D$14,$D$16,0),"") -> 
C54: =IF(ROWS(C$19:C54)<=$D$14+1,ROWS(C$19:C54)-1,"") ->  | D54: =IF(AND(ISNUMBER(_xlfn.BINOM.DIST(C54,$D$14,$D$16,0)),ROWS(C$19:C54)<=$D$14+1),_xlfn.BINOM.DIST(C54,$D$14,$D$16,0),"") -> 
C55: =IF(ROWS(C$19:C55)<=$D$14+1,ROWS(C$19:C55)-1,"") ->  | D55: =IF(AND(ISNUMBER(_xlfn.BINOM.DIST(C55,$D$14,$D$16,0)),ROWS(C$19:C55)<=$D$14+1),_xlfn.BINOM.DIST(C55,$D$14,$D$16,0),"") -> 
C56: =IF(ROWS(C$19:C56)<=$D$14+1,ROWS(C$19:C56)-1,"") ->  | D56: =IF(AND(ISNUMBER(_xlfn.BINOM.DIST(C56,$D$14,$D$16,0)),ROWS(C$19:C56)<=$D$14+1),_xlfn.BINOM.DIST(C56,$D$14,$D$16,0),"") -> 
C57: =IF(ROWS(C$19:C57)<=$D$14+1,ROWS(C$19:C57)-1,"") ->  | D57: =IF(AND(ISNUMBER(_xlfn.BINOM.DIST(C57,$D$14,$D$16,0)),ROWS(C$19:C57)<=$D$14+1),_xlfn.BINOM.DIST(C57,$D$14,$D$16,0),"") -> 
C58: =IF(ROWS(C$19:C58)<=$D$14+1,ROWS(C$19:C58)-1,"") ->  | D58: =IF(AND(ISNUMBER(_xlfn.BINOM.DIST(C58,$D$14,$D$16,0)),ROWS(C$19:C58)<=$D$14+1),_xlfn.BINOM.DIST(C58,$D$14,$D$16,0),"") -> 
C59: =IF(ROWS(C$19:C59)<=$D$14+1,ROWS(C$19:C59)-1,"") ->  | D59: =IF(AND(ISNUMBER(_xlfn.BINOM.DIST(C59,$D$14,$D$16,0)),ROWS(C$19:C59)<=$D$14+1),_xlfn.BINOM.DIST(C59,$D$14,$D$16,0),"") -> 
C60: =IF(ROWS(C$19:C60)<=$D$14+1,ROWS(C$19:C60)-1,"") ->  | D60: =IF(AND(ISNUMBER(_xlfn.BINOM.DIST(C60,$D$14,$D$16,0)),ROWS(C$19:C60)<=$D$14+1),_xlfn.BINOM.DIST(C60,$D$14,$D$16,0),"") -> 
C61: =IF(ROWS(C$19:C61)<=$D$14+1,ROWS(C$19:C61)-1,"") ->  | D61: =IF(AND(ISNUMBER(_xlfn.BINOM.DIST(C61,$D$14,$D$16,0)),ROWS(C$19:C61)<=$D$14+1),_xlfn.BINOM.DIST(C61,$D$14,$D$16,0),"") -> 
C62: =IF(ROWS(C$19:C62)<=$D$14+1,ROWS(C$19:C62)-1,"") ->  | D62: =IF(AND(ISNUMBER(_xlfn.BINOM.DIST(C62,$D$14,$D$16,0)),ROWS(C$19:C62)<=$D$14+1),_xlfn.BINOM.DIST(C62,$D$14,$D$16,0),"") -> 
C63: =IF(ROWS(C$19:C63)<=$D$14+1,ROWS(C$19:C63)-1,"") ->  | D63: =IF(AND(ISNUMBER(_xlfn.BINOM.DIST(C63,$D$14,$D$16,0)),ROWS(C$19:C63)<=$D$14+1),_xlfn.BINOM.DIST(C63,$D$14,$D$16,0),"") -> 
C64: =IF(ROWS(C$19:C64)<=$D$14+1,ROWS(C$19:C64)-1,"") ->  | D64: =IF(AND(ISNUMBER(_xlfn.BINOM.DIST(C64,$D$14,$D$16,0)),ROWS(C$19:C64)<=$D$14+1),_xlfn.BINOM.DIST(C64,$D$14,$D$16,0),"") -> 
C65: =IF(ROWS(C$19:C65)<=$D$14+1,ROWS(C$19:C65)-1,"") ->  | D65: =IF(AND(ISNUMBER(_xlfn.BINOM.DIST(C65,$D$14,$D$16,0)),ROWS(C$19:C65)<=$D$14+1),_xlfn.BINOM.DIST(C65,$D$14,$D$16,0),"") -> 
C66: =IF(ROWS(C$19:C66)<=$D$14+1,ROWS(C$19:C66)-1,"") ->  | D66: =IF(AND(ISNUMBER(_xlfn.BINOM.DIST(C66,$D$14,$D$16,0)),ROWS(C$19:C66)<=$D$14+1),_xlfn.BINOM.DIST(C66,$D$14,$D$16,0),"") -> 
C67: =IF(ROWS(C$19:C67)<=$D$14+1,ROWS(C$19:C67)-1,"") ->  | D67: =IF(AND(ISNUMBER(_xlfn.BINOM.DIST(C67,$D$14,$D$16,0)),ROWS(C$19:C67)<=$D$14+1),_xlfn.BINOM.DIST(C67,$D$14,$D$16,0),"") -> 
C68: =IF(ROWS(C$19:C68)<=$D$14+1,ROWS(C$19:C68)-1,"") ->  | D68: =IF(AND(ISNUMBER(_xlfn.BINOM.DIST(C68,$D$14,$D$16,0)),ROWS(C$19:C68)<=$D$14+1),_xlfn.BINOM.DIST(C68,$D$14,$D$16,0),"") -> 
C69: =IF(ROWS(C$19:C69)<=$D$14+1,ROWS(C$19:C69)-1,"") ->  | D69: =IF(AND(ISNUMBER(_xlfn.BINOM.DIST(C69,$D$14,$D$16,0)),ROWS(C$19:C69)<=$D$14+1),_xlfn.BINOM.DIST(C69,$D$14,$D$16,0),"") -> 

Sheet (29)
A1: Binomial Experiment 4 Requirements:
A2: 1 | B2: Experiment consists of a sequence of n identical trials. Random Variable counts the number of successes in a Fixed number of trials, n.
B3: Fixed # of Identical Trials = n | C3: Yes
A4: 2 | B4: Only 2 outcomes are possible on each identical trial. Success or Failure.
B5: Each trial only results in S or F | C5: Yes
A6: 3 | B6: Probability of Success = p = (π "pi"). Probability of Failure = 1-p. Probability remains the same on each trial.
B7: p remains the same for each trial | C7: Yes
A8: 4 | B8: The trials are independent (one does not affect the next)
B9: All events are independent | C9: Yes
H10: =B16&" = "&C16&" = "&D16&CHAR(10)&B3&" = "&D14 -> Probability of Take Public Transport in SF = p (π) = 0.3 Fixed # of Identical Trials = n = 10
B11: Variables | H11: P(x) = f(x) | I11: P(x) = f(x) | J11: SUM
B12: Take Public Transport in SF | C12: Success | F12: a | G12: =$D$15 -> 3 | H12: ="P(x = "&G12&")" -> P(x = 3) | I12: =_xlfn.BINOM.DIST(G12,D14,D16,0) -> 0.266827932 | J12: =SUM(D22) -> 0.266827932
B13: ="Not "&B12 -> Not Take Public Transport in SF | C13: Failure | F13: b | G13: =$D$15 -> 3 | H13: ="P(x >= "&G13&")" -> P(x >= 3) | I13: =1-_xlfn.BINOM.DIST(G13-1,$D$14,$D$16,1) -> 0.6172172136 | J13: =SUM(D22:D29) -> 0.6172172136 | K13: "at least"
B14: Sample of workers | C14: n | D14: 10 | G14: =$D$15 -> 3 | H14: ="P(x > "&G14&")" -> P(x > 3) | I14: =1-_xlfn.BINOM.DIST(G14,$D$14,$D$16,1) -> 0.3503892816 | J14: =SUM(D23:D29) -> 0.3503892816
B15: ="# successes = # that "&B12 -> # successes = # that Take Public Transport in SF | C15: x | D15: 3 | G15: =$D$15 -> 3 | H15: ="P(x < "&G15&")" -> P(x < 3) | I15: =_xlfn.BINOM.DIST(G15-1,$D$14,$D$16,1) -> 0.3827827864 | J15: =SUM(D19:D21) -> 0.3827827864
B16: ="Probability of "&B12 -> Probability of Take Public Transport in SF | C16: p (π) | D16: 0.3 | G16: =$D$15 -> 3 | H16: ="P(x <= "&G16&")" -> P(x <= 3) | I16: =_xlfn.BINOM.DIST(G16,$D$14,$D$16,1) -> 0.6496107184 | J16: =SUM(D19:D22) -> 0.6496107184
C18: X | D18: P(x) = f(x)
C19: 0 | D19: =_xlfn.BINOM.DIST(C19,$D$14,$D$16,0) -> 0.0282475249
C20: 1 | D20: 0.121060821
C21: 2 | D21: 0.2334744405
C22: 3 | D22: 0.266827932
C23: 4 | D23: 0.200120949
C24: 5 | D24: 0.1029193452
C25: 6 | D25: 0.036756909
C26: 7 | D26: 0.009001692
C27: 8 | D27: 0.0014467005
C28: 9 | D28: 0.000137781
C29: 10 | D29: 5.9049e-06

Sheet (35)
A1: Binomial Experiment 4 Requirements:
A2: 1 | B2: Experiment consists of a sequence of n identical trials. Random Variable counts the number of successes in a Fixed number of trials, n.
B3: Fixed # of Identical Trials = n | C3: Yes
A4: 2 | B4: Only 2 outcomes are possible on each identical trial. Success or Failure.
B5: Each trial only results in S or F | C5: Yes
A6: 3 | B6: Probability of Success = p = (π "pi"). Probability of Failure = 1-p. Probability remains the same on each trial.
B7: p remains the same for each trial | C7: Yes
A8: 4 | B8: The trials are independent (one does not affect the next)
B9: All events are independent | C9: Yes
B11: Variables
B12: Withdraw without completing Statistics | C12: Success
B13: ="Not "&B12 -> Not Withdraw without completing Statistics | C13: Failure
C14: n | D14: 20 | G14: n | H14: x | I14: P(x) = f(x) | J14: P(x) = f(x)
B15: ="# successes = # that "&B12 -> # successes = # that Withdraw without completing Statistics | C15: x | F15: a | G15: =$D$14 -> 20 | H15: 2 | I15: ="P(x <= "&H15&")" -> P(x <= 2) | J15: =_xlfn.BINOM.DIST(H15,G15,D16,1) -> 0.2060847189 | K15: =H15&" or fewer" -> 2 or fewer
B16: ="Probability of "&B12 -> Probability of Withdraw without completing Statistics | C16: p (π) | D16: 0.2 | F16: b | G16: =$D$14 -> 20 | H16: 4 | I16: ="P(x = "&H16&")" -> P(x = 4) | J16: =_xlfn.BINOM.DIST(H16,G16,D16,0) -> 0.2181994019
F17: c | G17: =$D$14 -> 20 | H17: 3 | I17: ="P(x > "&H17&")" -> P(x > 3) | J17: =1-_xlfn.BINOM.DIST(H17,G17,D16,1) -> 0.588551138 | K17: ="more than "&H17 -> more than 3
F18: d | I18: Mean = E(x) | J18: =D14*D16 -> 4

Sheet (36)
A1: Binomial Experiment 4 Requirements:
A2: 1 | B2: Experiment consists of a sequence of n identical trials. Random Variable counts the number of successes in a Fixed number of trials, n.
B3: Fixed # of Identical Trials = n
A4: 2 | B4: Only 2 outcomes are possible on each identical trial. Success or Failure.
B5: Each trial only results in S or F
A6: 3 | B6: Probability of Success = p = (π "pi"). Probability of Failure = 1-p. Probability remains the same on each trial.
B7: p remains the same for each trial
A8: 4 | B8: The trials are independent (one does not affect the next)
B9: All events are independent
B11: Variables
B12: Have Exchange Traded Funds | C12: Success
B13: ="Not "&B12 -> Not Have Exchange Traded Funds | C13: Failure
C14: n | D14: 20 | G14: P(x) = f(x) | H14: P(x) = f(x)
B15: ="# successes = # that "&B12 -> # successes = # that Have Exchange Traded Funds | C15: x | F15: 4 | G15: ="P(x = "&F15&")" -> P(x = 4) | H15: =_xlfn.BINOM.DIST(F15,$D$14,$D$16,0) -> 0.1896854549
B16: ="Probability of "&B12 -> Probability of Have Exchange Traded Funds | C16: p (π) | D16: 0.25 | F16: 2 | G16: ="P(x >= "&F16&")" -> P(x >= 2) | H16: =1-_xlfn.BINOM.DIST(F16-1,D14,D16,1) -> 0.9756873751 | I16: Yes I would doubt the accuracy because it is so improbable
F17: 12 | G17: ="P(x >= "&F17&")" -> P(x >= 12) | H17: =_xlfn.BINOM.DIST(F17,$D$14,$D$16,0) -> 0.0007516875212
G18: E(x) | H18: =D14*D16 -> 5

Sheet (40)
B1: Poisson Probability Distribution can be used to estimate the number of occurrences over a specified interval of time or space
B2: Properties of a Poisson Experiment:
B3: The probability of an occurrence is the same for any two intervals of equal length
B4: The occurrence or nonoccurrence in any interval is independent of the occurrence or nonoccurrence in any other interval
B5: No upper limit for X: 0,1,2,3… , but as x increases past the mean, the probability decreases and gest quite small.
B6: Mean = Var
B7: Excel function: POISSON POISSON(x,mean,cumulative (0 = exact, 1 = cumulative))
B10: x = Calls per hour | C10: 48
B11: Business = | C11: Regional Airways
B12: ="Phone calls arrive at a rate of "&C10&" per hour at the reservation desk for "&C11 -> Phone calls arrive at a rate of 48 per hour at the reservation desk for Regional Airways
B13: Assumption 1 | C13: Probability is the same for any 1 hour interval
B14: Assumption 2 | C14: Arrival or nonarrival of a call in a 1 hour period is independent of the arrival or nonarrival in any other 1 hour period
B15: Mean | C15: =$C$10 -> 48 | D15: calls | E15: per | F15: 1 | G15: hour
A16: a | B16: x | C16: 3 | D16: calls | E16: per | F16: 5 | G16: minutes
B17: Mean | C17: =C15/60*F16 -> 4
B18: ="P("&C16&" "&D16&" "&E16&" "&F16&" "&G16&")" -> P(3 calls per 5 minutes) | C18: =_xlfn.POISSON.DIST(C16,C17,0) -> 0.1953668148
B19: P(x) = (mu^x*e^-mu)/X!) | C19: =(C17^C16*EXP(1)^-C17)/FACT(C16) -> 0.1953668148
A20: b | B20: Mean | C20: =$C$10 -> 48 | D20: calls | E20: per | F20: 1 | G20: hour
B21: x | C21: 10 | D21: calls | E21: per | F21: 15 | G21: minutes
B22: Mean | C22: =C20/60*F21 -> 12
B23: P(x) | C23: =_xlfn.POISSON.DIST(C21,C22,0) -> 0.1048372559
A24: c | B24: Mean | C24: =$C$10 -> 48 | D24: calls | E24: per | F24: 1 | G24: hour
B25: x | C25: 0 | D25: calls | E25: per | F25: 5 | G25: minutes
B26: Mean | C26: =C24/60*F25 -> 4
B27: ="P("&C25&" "&D25&" "&E25&" "&F25&" "&G25&")" -> P(0 calls per 5 minutes) | C27: =_xlfn.POISSON.DIST(C25,C26,0) -> 0.01831563889
A28: d | B28: Mean | C28: =$C$10 -> 48 | D28: calls | E28: per | F28: 1 | G28: hour
B29: x | C29: 0 | D29: calls | E29: per | F29: 3 | G29: minutes
B30: Mean | C30: =C28/60*F29 -> 2.4
B31: ="P("&C29&" "&D29&" "&E29&" "&F29&" "&G29&")" -> P(0 calls per 3 minutes) | C31: =_xlfn.POISSON.DIST(C29,C30,0) -> 0.09071795329
B33: X | C33: P(x)
B34: 0 | C34: =POISSON(B34,$C$15,0) -> 1.425164083e-21
B35: 1 | C35: =POISSON(B35,$C$15,0) -> 6.840787597e-20
B36: 2 | C36: 1.641789023e-18
B37: 3 | C37: 2.626862437e-17
B38: 4 | C38: 3.152234925e-16
B39: 5 | C39: 3.026145528e-15
B40: 6 | C40: 2.420916422e-14
B41: 7 | C41: 1.660056975e-13
B42: 8 | C42: 9.960341851e-13
B43: 9 | C43: 5.312182321e-12
B44: 10 | C44: 2.549847514e-11
B45: 11 | C45: 1.112660733e-10
B46: 12 | C46: 4.450642933e-10
B47: 13 | C47: 1.643314314e-09
B48: 14 | C48: 5.634220505e-09
B49: 15 | C49: 1.802950562e-08
B50: 16 | C50: 5.408851685e-08
B51: 17 | C51: 1.527205182e-07
B52: 18 | C52: 4.072547151e-07
B53: 19 | C53: 1.028854017e-06
B54: 20 | C54: 2.469249641e-06
B55: 21 | C55: 5.643999179e-06
B56: 22 | C56: 1.231418003e-05
B57: 23 | C57: 2.569915832e-05
B58: 24 | C58: 5.139831664e-05
B59: 25 | C59: 9.868476794e-05
B60: 26 | C60: 0.0001821872639
B61: 27 | C61: 0.0003238884691
B62: 28 | C62: 0.0005552373757
B63: 29 | C63: 0.0009190135873
B64: 30 | C64: 0.00147042174
B65: 31 | C65: 0.002276782049
B66: 32 | C66: 0.003415173073
B67: 33 | C67: 0.00496752447
B68: 34 | C68: 0.007012975722
B69: 35 | C69: 0.009617795276
B70: 36 | C70: 0.01282372703
B71: 37 | C71: 0.01663618642
B72: 38 | C72: 0.02101413022
B73: 39 | C73: 0.02586354488
B74: 40 | C74: 0.03103625386
B75: 41 | C75: 0.03633512647
B76: 42 | C76: 0.04152585882
B77: 43 | C77: 0.04635444706
B78: 44 | C78: 0.0505684877
B79: 45 | C79: 0.05393972021
B80: 46 | C80: 0.05628492544
B81: 47 | C81: 0.05748247705
B82: 48 | C82: 0.05748247705
B83: 49 | C83: 0.05630936527
B84: 50 | C84: 0.05405699066
B85: 51 | C85: 0.05087716768
B86: 52 | C86: 0.0469635394
B87: 53 | C87: 0.04253301681
B88: 54 | C88: 0.03780712605
B89: 55 | C89: 0.03299531001
B90: 56 | C90: 0.0282816943
B91: 57 | C91: 0.02381616362
B92: 58 | C92: 0.01970992851
B93: 59 | C93: 0.01603519608
B94: 60 | C94: 0.01282815686
B95: 61 | C95: 0.01009428737
B96: 62 | C96: 0.007814932154
B97: 63 | C97: 0.005954234022
B98: 64 | C98: 0.004465675517
B99: 65 | C99: =POISSON(B99,$C$15,0) -> 0.003297729612
B100: 66 | C100: 0.002398348809
B101: 67 | C101: 0.001718220042
B102: 68 | C102: 0.001212861206
B103: 69 | C103: 0.0008437295348
B104: 70 | C104: 0.0005785573953
B105: 71 | C105: 0.000391137394
B106: 72 | C106: 0.0002607582627
B107: 73 | C107: 0.0001714574878
B108: 74 | C108: 0.0001112156678
B109: 75 | C109: 7.117802736e-05
B110: 76 | C110: 4.49545436e-05
B111: 77 | C111: 2.802361159e-05
B112: 78 | C112: 1.724529944e-05
B113: 79 | C113: 1.047815662e-05
B114: 80 | C114: 6.286893974e-06
B115: 81 | C115: 3.725566799e-06
B116: 82 | C116: 2.18081959e-06
B117: 83 | C117: 1.261196871e-06
B118: 84 | C118: 7.206839264e-07
B119: 85 | C119: 4.069744526e-07
B120: 86 | C120: 2.271485317e-07
B121: 87 | C121: 1.253233278e-07
B122: 88 | C122: 6.835817881e-08
B123: 89 | C123: 3.686733239e-08
B124: 90 | C124: 1.966257728e-08
B125: 91 | C125: 1.037146933e-08
B126: 92 | C126: 5.411201391e-09
B127: 93 | C127: 2.792878137e-09
B128: 94 | C128: 1.426150538e-09
B129: 95 | C129: 7.205813245e-10
B130: 96 | C130: 3.602906622e-10
B131: 97 | C131: 1.782881628e-10
B132: 98 | C132: 8.732481441e-11
B133: 99 | C133: 4.233930396e-11
B134: 100 | C134: 2.03228659e-11
B135: 101 | C135: 9.658391715e-12
B136: 102 | C136: 4.545125513e-12
B137: 103 | C137: 2.118116744e-12
B138: 104 | C138: 9.775923433e-13
B139: 105 | C139: 4.468993569e-13
B140: 106 | C140: 2.023695201e-13
B141: 107 | C141: 9.078258847e-14
B142: 108 | C142: 4.03478171e-14
B143: 109 | C143: 1.776784606e-14

Sheet (42)
B1: Poisson Probability Distribution can be used to estimate the number of occurrences over a specified interval of time or space
B2: Properties of a Poisson Experiment:
B3: The probability of an occurrence is the same for any two intervals of equal length
B4: The occurrence or nonoccurrence in any interval is independent of the occurrence or nonoccurrence in any other interval
B5: No upper limit for X: 0,1,2,3… , but as x increases, the probability decreases
B6: Mean = Var
B7: Excel function: POISSON POISSON(x,mean,cumulative (0 = exact, 1 = cumulative))
B10: x = Web visitors per minute | C10: 7
B11: Business = | C11: B & B I of NA
B12: =B10&" arrive at a rate of "&C10&" per hour at the web site for "&C11 -> x = Web visitors per minute arrive at a rate of 7 per hour at the web site for B & B I of NA
B13: Assumption 1 | C13: Probability is the same for any 1 minute interval
B14: Assumption 2 | C14: Arrival or nonarrival of a web visitor in a 1 minute period is independent of the arrival or nonarrival in any other 1 minute period
B15: Mean | C15: =$C$10 -> 7 | D15: calls | E15: per | F15: 1 | G15: minute
A16: a | B16: x | C16: 0 | D16: calls | E16: per | F16: 1 | G16: minute
B17: Mean | C17: =C15/1*F16 -> 7
B18: ="P("&C16&" "&D16&" "&E16&" "&F16&" "&G16&")" -> P(0 calls per 1 minute) | C18: =_xlfn.POISSON.DIST(C16,C17,0) -> 0.0009118819656
B19: P(x) = (mu^x*e^-mu)/X!) | C19: =(C17^C16*EXP(1)^-C17)/FACT(C16) -> 0.0009118819656
A20: b | B20: x | C20: 2
B21: P(2 or more in 1 minute) | C21: =1-_xlfn.POISSON.DIST(C20-1,$C$15,1) -> 0.9927049443
A22: c | B22: x | C22: 1 | D22: =1/2 -> 0.5 | E22: minutes
B23: Mean | C23: =C15*D22 -> 3.5
B24: P(1 of more in 30 sec.) | C24: =1-_xlfn.POISSON.DIST(C22-1,C23,1) -> 0.9698026166
A25: d | B25: x | C25: 5
B26: P(5 or more in 1 minute) | C26: =1-_xlfn.POISSON.DIST(C25-1,$C$15,1) -> 0.8270083921
B38: x | C38: p(x)
B39: 0 | C39: =POISSON(B39,$C$10,0) -> 0.0009118819656
B40: 1 | C40: =POISSON(B40,$C$10,0) -> 0.006383173759
B41: 2 | C41: 0.02234110816
B42: 3 | C42: 0.05212925236
B43: 4 | C43: 0.09122619164
B44: 5 | C44: 0.1277166683
B45: 6 | C45: 0.1490027797
B46: 7 | C46: 0.1490027797
B47: 8 | C47: 0.1303774322
B48: 9 | C48: 0.1014046695
B49: 10 | C49: 0.07098326865
B50: 11 | C50: 0.04517117096
B51: 12 | C51: 0.02634984973
B52: 13 | C52: 0.01418838062
B53: 14 | C53: 0.007094190311
B54: 15 | C54: 0.003310622145
B55: 16 | C55: 0.001448397188
B56: 17 | C56: 0.0005963988423
B57: 18 | C57: 0.0002319328831
B58: 19 | C58: 8.544895694e-05
B59: 20 | C59: 2.990713493e-05
B60: 21 | C60: 9.969044976e-06
B61: 22 | C61: 3.171968856e-06
B62: 23 | C62: 9.653818258e-07
B63: 24 | C63: 2.815696992e-07
B64: 25 | C64: 7.883951577e-08
B65: 26 | C65: 2.122602348e-08
B66: 27 | C66: 5.503043124e-09
B67: 28 | C67: 1.375760781e-09
B68: 29 | C68: 3.320801885e-10
B69: 30 | C69: 7.748537732e-11

Sheet (49)
B8: Cards in deck at start | C8: 52
B9: # cards worth 11 = | C9: 4
B10: # cards worth 12 = | C10: 16
A12: a | B12: sample size = | C12: 2
B13: # successes we want | C13: 2
B14: P(both are face or ace) | C14: =SUM(C9:C10)/C8*(SUM(C9:C10)-1)/(C8-1) -> 0.1432880845
B15: P(both are face or ace) | C15: =_xlfn.HYPGEOM.DIST(C13,C12,SUM(C9:C10),C8,0) -> 0.1432880845
A16: b | B16: sample size = | C16: 2
B17: # successes we want | C17: 2
B18: P(both Ace) | C18: =_xlfn.HYPGEOM.DIST(C16,C17,C9,C8,0) -> 0.004524886878
A19: c | B19: sample size = | C19: 2
B20: # successes we want | C20: 2
B21: P(both 10) | C21: =_xlfn.HYPGEOM.DIST(C19,C20,C10,C8,0) -> 0.09049773756
A22: d | B22: P(blackjack) | C22: =C15-C18-C21 -> 0.04826546003
